[Event "WYCC 2018 G14"]
[Site "Halkidiki"]
[Date "2018.10.27"]
[Round "8"]
[White "Zeng, Sheena"]
[Black "Rodriguez Redondo, Adhara"]
[Result "1-0"]
[ECO "D31"]
[WhiteElo "1807"]
[BlackElo "1911"]
[Annotator "NA"]
[PlyCount "75"]
[EventDate "2018.10.20"]
[EventType "swiss"]
[EventCountry "GRE"]
[SourceTitle "playchess.com"]
[Source "ChessBase"]
[SourceQuality "1"]
[TimeControl "40/5400+30:1800+30"]

1. d4 {[%emt 0:00:00]} d5 {[%emt 0:00:00]} 2. c4 {[%emt 0:00:00]} e6 {[%emt 0:00:00]} 3. Nc3 {[%emt 0:00:00]} Be7 {[%emt 0:00:00]} 4. Nf3 {[%emt 0:00:10]} Nf6 {[%emt 0:00:00]} 5. cxd5 {[%emt 0:00:29]} exd5 {[%emt 0:00:04]} 6. Qc2 {[%emt 0:00:05]} O-O {[%emt 0:01:09]} 7. Bf4 {[%emt 0:01:45]} c6 {[%emt 0:01:24]} 8. e3 {[%emt 0:00:35]} Nbd7 {[%emt 0:03:41]} 9. Bd3 {[%emt 0:00:30]} Re8 {[%emt 0:01:05]} 10. h3 {[%emt 0:00:24]} Nf8 {[%emt 0:02:08]} 11. O-O {[%emt 0:00:37]} Ne6 {[%emt 0:02:08]} 12. Bh2 {[%emt 0:01:30]} g6 {[%emt 0:00:56]} 13. Rab1 {[%emt 0:02:55]} Ng7 {[%emt 0:02:07]} 14. b4 {[%emt 0:02:54] LiveBook: 3 Games} a6 $14 {[%emt 0:01:42]} 15. Na4 {[%emt 0:07:02]} Bf5 {[%emt 0:04:57]} 16. Nc5 {[%emt 0:02:50]} Qc8 {[%emt 0:03:36]} 17. Bxf5 {[%emt 0:05:01]} Nxf5 {[%emt 0:00:30]} 18. a4 {[%emt 0:02:15]} Nd6 {[%emt 0:03:04]} 19. Bxd6 {[%emt 0:03:21]} Bxd6 {[%emt 0:00:06]} 20. Rfc1 {[%emt 0:01:13]} Re7 {[%emt 0:09:21]} 21. Qb2 {[%emt 0:01:57]} Nh5 {[%emt 0:08:17]} 22. b5 {[%emt 0:02:39]} axb5 {[%emt 0:02:27]} 23. axb5 {[%emt 0:00:06]} f5 {[%emt 0:02:31]} 24. Qb3 {[%emt 0:17:08]} f4 {[%emt 0:09:20]} 25. e4 {[%emt 0:02:30]} Bxc5 {[%emt 0:04:23]} 26. Rxc5 {[%emt 0:00:14]} Rxe4 {[%emt 0:02:07]} 27. Rbc1 {[%emt 0:00:55]} Re6 {[%emt 0:13:07]} 28. Ne5 {[%emt 0:09:48]} Nf6 {[%emt 0:06:18]} 29. bxc6 {[%emt 0:00:46]} bxc6 {[%emt 0:01:41]} 30. Rxc6 {[%emt 0:02:57]} Qe8 {[%emt 0:03:57]} 31. Kh2 {[%emt 0:09:18]} Rd8 {[%emt 0:03:00]} 32. Qb7 {[%emt 0:12:36]} Re7 {[%emt 0:04:02]} 33. Rc7 {[%emt 0:01:40]} Rxc7 {[%emt 0:03:49]} 34. Rxc7 {[%emt 0:00:05]} Rb8 {[%emt 0:01:41]} 35. Qa6 {[%emt 0:04:00]} Nh5 {[%emt 0:02:10]} 36. Ng4 {[%emt 0:03:15]} Ra8 {[%emt 0:00:38]} 37. Qb7 {[%emt 0:01:03]} Rd8 {[%emt 0:00:31]} 38. Nh6+ {[%emt 0:00:10]} 1-0

[Event "WYCC 2018 G14"]
[Site "Halkidiki"]
[Date "2018.10.27"]
[Round "8"]
[White "Zeliantsova, Kseniya"]
[Black "Ehsani, Yassamin"]
[Result "1-0"]
[ECO "B40"]
[WhiteElo "1804"]
[BlackElo "1875"]
[Annotator "NA"]
[PlyCount "57"]
[EventDate "2018.10.20"]
[EventType "swiss"]
[EventCountry "GRE"]
[SourceTitle "playchess.com"]
[Source "ChessBase"]
[SourceQuality "1"]
[TimeControl "40/5400+30:1800+30"]

1. e4 {[%emt 0:00:00]} c5 {[%emt 0:00:00]} 2. Nf3 {[%emt 0:00:00]} e6 {[%emt 0:00:00]} 3. c4 {[%emt 0:00:00]} Nc6 {[%emt 0:00:03]} 4. Nc3 {[%emt 0:00:00]} Nge7 {[%emt 0:00:10]} 5. d4 {[%emt 0:00:17]} cxd4 {[%emt 0:00:21]} 6. Nxd4 {[%emt 0:00:08]} Nxd4 {[%emt 0:00:14]} 7. Qxd4 {[%emt 0:00:08]} Nc6 {[%emt 0:00:17]} 8. Qd3 {[%emt 0:00:40]} Bc5 {[%emt 0:03:24]} 9. Be2 {[%emt 0:00:11]} O-O {[%emt 0:00:59]} 10. O-O {[%emt 0:01:52]} d6 {[%emt 0:01:37]} 11. Qg3 {[%emt 0:06:22]} Kh8 {[%emt 0:03:01]} 12. Bg5 {[%emt 0:04:48]} f6 {[%emt 0:02:20]} 13. Be3 {[%emt 0:00:10]} Nd4 {[%emt 0:08:58]} 14. Bd3 {[%emt 0:04:19]} e5 {[%emt 0:04:05]} 15. Rad1 {[%emt 0:06:56]} Be6 {[%emt 0:03:10]} 16. Ne2 {[%emt 0:08:24]} Nc6 {[%emt 0:12:44]} 17. b3 {[%emt 0:05:05]} Qa5 {[%emt 0:06:34]} 18. Bb1 {[%emt 0:04:28]} Rfd8 {[%emt 0:01:44]} 19. Kh1 {[%emt 0:06:24]} a6 {[%emt 0:03:46]} 20. f4 {[%emt 0:03:30]} Qb6 {[%emt 0:04:57]} 21. Rf3 {[%emt 0:05:47]} a5 {[%emt 0:09:46]} 22. f5 {[%emt 0:03:48]} Bg8 {[%emt 0:00:50]} 23. Nc3 {[%emt 0:08:34]} Nd4 {[%emt 0:05:46]} 24. Bxd4 {[%emt 0:00:08]} Bxd4 {[%emt 0:01:15]} 25. Nb5 {[%emt 0:00:24]} d5 {[%emt 0:04:51]} 26. exd5 {[%emt 0:08:22]} Bxd5 {[%emt 0:00:22]} 27. Rfd3 {[%emt 0:02:54]} Bf2 {[%emt 0:04:57]} 28. Qg4 {[%emt 0:00:29]} Bg8 {[%emt 0:03:16]} 29. Rd7 1-0

[Event "WYCC 2018 G14"]
[Site "Halkidiki"]
[Date "2018.10.27"]
[Round "8"]
[White "Somton, Anita"]
[Black "Pandey, Divya"]
[Result "1/2-1/2"]
[ECO "C50"]
[WhiteElo "1787"]
[BlackElo "1523"]
[Annotator "NA"]
[PlyCount "45"]
[EventDate "2018.10.20"]
[EventType "swiss"]
[EventCountry "GRE"]
[SourceTitle "playchess.com"]
[Source "ChessBase"]
[SourceQuality "1"]
[TimeControl "40/5400+30:1800+30"]

1. e4 e5 2. Bc4 Nc6 3. Nf3 Bc5 4. O-O Nf6 5. d3 O-O 6. c3 d5 7. exd5 Nxd5 8. b4 Be7 9. b5 Na5 10. Nxe5 Nxc4 11. Nxc4 a6 12. bxa6 Rxa6 13. d4 Bf5 14. Bb2 Rg6 15. Ne5 Rb6 16. Qf3 Bc2 17. Nc4 Rf6 18. Qe2 Bf5 19. Ne3 Nf4 20. Qd2 Bd3 21. Re1 Rg6 22. Na3 Bh4 23. g3 1/2-1/2

[Event "WYCC 2018 G14"]
[Site "Halkidiki"]
[Date "2018.10.27"]
[Round "8"]
[White "Murzina, Agata"]
[Black "Wang, Isabelle"]
[Result "1-0"]
[ECO "C50"]
[WhiteElo "1768"]
[BlackElo "1416"]
[Annotator "NA"]
[PlyCount "117"]
[EventDate "2018.10.20"]
[EventType "swiss"]
[EventCountry "GRE"]
[SourceTitle "playchess.com"]
[Source "ChessBase"]
[SourceQuality "1"]
[TimeControl "40/5400+30:1800+30"]

1. e4 {[%emt 0:00:00]} e5 {[%emt 0:00:00]} 2. Nf3 {[%emt 0:00:00]} Nc6 {[%emt 0:00:00]} 3. Bc4 {[%emt 0:00:04]} Bc5 {[%emt 0:00:00]} 4. d3 {[%emt 0:00:04]} Nf6 {[%emt 0:00:09]} 5. Nc3 {[%emt 0:00:04]} O-O {[%emt 0:00:46]} 6. Bg5 {[%emt 0:00:10]} Be7 {[%emt 0:00:21]} 7. Bxf6 {[%emt 0:00:39]} Bxf6 {[%emt 0:00:22]} 8. Nd5 {[%emt 0:00:03]} d6 {[%emt 0:04:57]} 9. a3 {[%emt 0:01:16]} Be6 {[%emt 0:10:10]} 10. Nxf6+ {[%emt 0:02:39]} Qxf6 {[%emt 0:00:29]} 11. Bxe6 {[%emt 0:00:08]} fxe6 {[%emt 0:01:34]} 12. O-O {[%emt 0:03:39]} Ne7 {[%emt 0:07:36]} 13. Qd2 {[%emt 0:04:28]} h6 {[%emt 0:06:35]} 14. Qc3 {[%emt 0:00:42]} Rac8 {[%emt 0:09:24]} 15. Rfe1 {[%emt 0:04:53]} Ng6 {[%emt 0:04:23]} 16. Re3 {[%emt 0:05:05]} Nf4 {[%emt 0:06:48]} 17. Qb3 {[%emt 0:25:49]} Rb8 {[%emt 0:08:39]} 18. Rd1 {[%emt 0:03:13]} Qg6 {[%emt 0:06:44]} 19. g3 {[%emt 0:00:11]} Ne2+ {[%emt 0:03:49]} 20. Rxe2 {[%emt 0:01:09]} Rxf3 {[%emt 0:00:32]} 21. Qc4 {[%emt 0:05:10]} Qf7 {[%emt 0:02:42]} 22. Kg2 {[%emt 0:02:40]} Rf6 {[%emt 0:02:13]} 23. Rdd2 {[%emt 0:01:23]} Kh7 {[%emt 0:02:54]} 24. c3 {[%emt 0:01:03]} Qd7 {[%emt 0:02:50]} 25. d4 {[%emt 0:06:40]} exd4 {[%emt 0:00:53]} 26. cxd4 {[%emt 0:01:04]} Rff8 {[%emt 0:01:08]} 27. Rc2 {[%emt 0:00:34]} c6 {[%emt 0:02:33]} 28. e5 {[%emt 0:03:04]} d5 {[%emt 0:00:42]} 29. Qc5 {[%emt 0:00:15]} a6 {[%emt 0:00:57]} 30. a4 {[%emt 0:01:22]} Qf7 {[%emt 0:01:16]} 31. Rc3 {[%emt 0:00:56]} Qf5 {[%emt 0:01:58]} 32. Qa3 {[%emt 0:05:16]} Qg6 {[%emt 0:03:14]} 33. b4 {[%emt 0:04:12]} Qg4 {[%emt 0:02:26]} 34. Rd2 {[%emt 0:00:13]} Qg5 {[%emt 0:00:35]} 35. Qb2 {[%emt 0:01:33]} Qe7 {[%emt 0:02:26]} 36. Rdc2 {[%emt 0:00:32]} Rfc8 {[%emt 0:01:35]} 37. Rc1 {[%emt 0:02:16]} Kh8 {[%emt 0:02:12]} 38. b5 {[%emt 0:00:36]} axb5 {[%emt 0:01:18]} 39. axb5 {[%emt 0:00:05]} Qd7 {[%emt 0:01:06]} 40. Qc2 {[%emt 0:00:00]} c5 {[%emt 0:00:00]} 41. Rxc5 {[%emt 0:00:19]} Rxc5 {[%emt 0:03:51]} 42. Qxc5 {[%emt 0:00:07]} Re8 {[%emt 0:02:37]} 43. b6 {[%emt 0:00:07]} Qf7 {[%emt 0:01:38]} 44. Rc3 {[%emt 0:01:43]} Rf8 {[%emt 0:01:22]} 45. f3 {[%emt 0:00:24]} Re8 {[%emt 0:00:49]} 46. Qd6 {[%emt 0:00:13]} Ra8 {[%emt 0:01:41]} 47. h4 {[%emt 0:06:07]} Ra2+ {[%emt 0:02:06]} 48. Kg1 Qf5 {[%emt 0:01:32]} 49. Qb4 {[%emt 0:02:04]} Ra1+ {[%emt 0:14:01]} 50. Kf2 {[%emt 0:00:31]} Qh3 {[%emt 0:01:42]} 51. Rc8+ {[%emt 0:10:34]} Kh7 {[%emt 0:00:16]} 52. Qc3 {[%emt 0:01:01]} Qh2+ {[%emt 0:04:39]} 53. Ke3 {[%emt 0:00:07]} Qg1+ {[%emt 0:00:56]} 54. Kf4 {[%emt 0:00:08]} g5+ {[%emt 0:00:21]} 55. hxg5 {[%emt 0:00:25]} hxg5+ {[%emt 0:00:24]} 56. Kg4 {[%emt 0:00:15]} Ra4 {[%emt 0:00:36]} 57. Qc7+ {[%emt 0:00:23]} Kg6 {[%emt 0:00:17]} 58. Rg8+ {[%emt 0:00:06]} Kh6 {[%emt 0:00:06]} 59. Qg7# {[%emt 0:00:06]} 1-0

[Event "WYCC 2018 G14"]
[Site "Halkidiki"]
[Date "2018.10.27"]
[Round "8"]
[White "Gabbani, Sara"]
[Black "Galvan Cipriani, Viviana"]
[Result "0-1"]
[ECO "B23"]
[WhiteElo "1764"]
[BlackElo "2109"]
[Annotator "NA"]
[PlyCount "64"]
[EventDate "2018.10.20"]
[EventType "swiss"]
[EventCountry "GRE"]
[SourceTitle "playchess.com"]
[Source "ChessBase"]
[SourceQuality "1"]
[TimeControl "40/5400+30:1800+30"]

1. e4 {[%emt 0:00:00]} c5 {[%emt 0:00:00]} 2. Nc3 {[%emt 0:00:00]} Nc6 {[%emt 0:00:00]} 3. Nge2 {[%emt 0:00:00]} e5 {[%emt 0:00:04]} 4. Nd5 {[%emt 0:00:00]} g6 {[%emt 0:02:09]} 5. Nec3 {[%emt 0:03:43]} a6 {[%emt 0:00:09]} 6. a4 {[%emt 0:00:16]} Bg7 {[%emt 0:04:26]} 7. Bc4 {[%emt 0:02:53]} Nge7 {[%emt 0:01:06]} 8. d3 {[%emt 0:01:24]} Nxd5 {[%emt 0:02:42]} 9. Nxd5 {[%emt 0:01:26]} O-O {[%emt 0:00:18]} 10. O-O {[%emt 0:02:19]} d6 $14 {[%emt 0:02:48]} 11. c3 {[%emt 0:05:08]} Rb8 {[%emt 0:05:29]} 12. f4 {[%emt 0:07:25]} b5 {[%emt 0:10:10]} 13. axb5 {[%emt 0:05:06]} axb5 {[%emt 0:00:07]} 14. Ba2 {[%emt 0:07:10]} exf4 {[%emt 0:04:12]} 15. Bxf4 {[%emt 0:06:06]} Be6 {[%emt 0:04:25]} 16. Qd2 {[%emt 0:05:44]} Qd7 {[%emt 0:08:52]} 17. Bg5 {[%emt 0:03:39]} f5 {[%emt 0:01:06]} 18. exf5 {[%emt 0:02:09]} Rxf5 {[%emt 0:03:25]} 19. Rxf5 {[%emt 0:01:05]} gxf5 {[%emt 0:00:24]} 20. Rf1 {[%emt 0:00:31]} Qf7 {[%emt 0:02:18]} 21. Bh6 {[%emt 0:07:27]} Be5 {[%emt 0:06:19]} 22. c4 {[%emt 0:06:46]} bxc4 {[%emt 0:04:48]} 23. dxc4 {[%emt 0:07:08]} Rxb2 {[%emt 0:05:23]} 24. Qg5+ {[%emt 0:01:01]} Qg6 {[%emt 0:11:07]} 25. Bb1 {[%emt 0:02:32]} Bg7 {[%emt 0:02:02]} 26. Qxg6 {[%emt 0:03:48]} hxg6 {[%emt 0:00:08]} 27. Bg5 {[%emt 0:01:40]} Ne5 {[%emt 0:01:38]} 28. Nf6+ {[%emt 0:03:19]} Kf7 {[%emt 0:00:39]} 29. Ne4 {[%emt 0:01:06]} Nxc4 {[%emt 0:01:14]} 30. Bh4 {[%emt 0:02:51]} Bd4+ {[%emt 0:02:33]} 31. Kh1 {[%emt 0:00:55]} Bd5 {[%emt 0:00:11]} 32. Ng5+ {[%emt 0:02:06]} Kg8 {[%emt 0:00:58]} 0-1

[Event "WYCC 2018 G14"]
[Site "Halkidiki"]
[Date "2018.10.27"]
[Round "8"]
[White "De Rycke, Tyani"]
[Black "Guillo Longares, Cecilia"]
[Result "1-0"]
[ECO "B26"]
[WhiteElo "1758"]
[BlackElo "1998"]
[Annotator "NA"]
[PlyCount "101"]
[EventDate "2018.10.20"]
[EventType "swiss"]
[EventCountry "GRE"]
[SourceTitle "playchess.com"]
[Source "ChessBase"]
[SourceQuality "1"]
[TimeControl "40/5400+30:1800+30"]

1. e4 {[%emt 0:00:00]} c5 {[%emt 0:00:00]} 2. Nc3 {[%emt 0:00:00]} Nc6 {[%emt 0:00:00]} 3. g3 {[%emt 0:00:00]} g6 {[%emt 0:00:00]} 4. Bg2 {[%emt 0:00:00]} Bg7 {[%emt 0:00:00]} 5. d3 {[%emt 0:00:00]} d6 {[%emt 0:00:00]} 6. Be3 {[%emt 0:00:01]} e6 {[%emt 0:00:00]} 7. Qd2 {[%emt 0:00:20]} Nd4 {[%emt 0:00:01]} 8. Nge2 {[%emt 0:00:21]} Ne7 {[%emt 0:00:29]} 9. O-O {[%emt 0:00:30]} O-O {[%emt 0:01:05]} 10. f4 {[%emt 0:00:26]} Rb8 {[%emt 0:06:04]} 11. Nd1 {[%emt 0:01:32]} b6 {[%emt 0:03:11]} 12. c3 {[%emt 0:01:58]} Nxe2+ {[%emt 0:00:08]} 13. Qxe2 {[%emt 0:00:08]} f5 {[%emt 0:03:21]} 14. Qd2 {[%emt 0:07:53]} e5 {[%emt 0:03:22]} 15. d4 {[%emt 0:05:48]} exd4 {[%emt 0:04:46]} 16. cxd4 {[%emt 0:00:11]} fxe4 {[%emt 0:00:07]} 17. Bxe4 {[%emt 0:14:13]} d5 {[%emt 0:04:29]} 18. Bg2 {[%emt 0:01:33]} c4 {[%emt 0:01:01]} 19. Nc3 {[%emt 0:03:19]} Bb7 {[%emt 0:05:57]} 20. b3 {[%emt 0:07:05]} Nf5 {[%emt 0:02:12]} 21. Bf2 {[%emt 0:01:30]} a6 {[%emt 0:01:23]} 22. g4 {[%emt 0:00:57]} Ne7 {[%emt 0:03:01]} 23. Bg3 {[%emt 0:00:29]} Rc8 {[%emt 0:03:59]} 24. Rfe1 {[%emt 0:05:01]} Bf6 {[%emt 0:04:13]} 25. Re6 {[%emt 0:08:55]} b5 {[%emt 0:09:01]} 26. b4 {[%emt 0:02:37]} Qd7 {[%emt 0:02:11]} 27. Rae1 {[%emt 0:00:35]} Rce8 {[%emt 0:00:06]} 28. Bf2 {[%emt 0:09:07]} Bc6 {[%emt 0:06:47]} 29. Qe2 {[%emt 0:03:09]} Rf7 {[%emt 0:00:27]} 30. Qf3 {[%emt 0:10:08]} Ref8 {[%emt 0:06:39]} 31. Qg3 {[%emt 0:02:00]} Kh8 {[%emt 0:05:08]} 32. Qe3 {[%emt 0:03:04]} Re8 {[%emt 0:00:10]} 33. Bh3 {[%emt 0:01:27]} Qc7 {[%emt 0:04:56]} 34. Bg2 {[%emt 0:00:53]} Bd7 {[%emt 0:05:50]} 35. Nxd5 {[%emt 0:01:16]} Nxd5 {[%emt 0:01:28]} 36. Rxe8+ {[%emt 0:00:19]} Bxe8 {[%emt 0:00:16]} 37. Qxe8+ {[%emt 0:00:08]} Kg7 {[%emt 0:00:04]} 38. Bxd5 {[%emt 0:00:09]} Rf8 {[%emt 0:00:05]} 39. Qe4 {[%emt 0:01:15]} Qd6 {[%emt 0:02:35]} 40. g5 {[%emt 0:00:00]} Bd8 {[%emt 0:00:00]} 41. Bg3 {[%emt 0:01:51]} Bc7 {[%emt 0:00:52]} 42. f5 {[%emt 0:01:03]} gxf5 {[%emt 0:00:35]} 43. Bxd6 {[%emt 0:00:14]} fxe4 {[%emt 0:00:04]} 44. Bxf8+ {[%emt 0:00:18]} Kxf8 {[%emt 0:00:06]} 45. Bxe4 {[%emt 0:00:10]} Bb6 {[%emt 0:00:16]} 46. Rd1 {[%emt 0:00:21]} Kg7 {[%emt 0:00:05]} 47. Bb7 {[%emt 0:00:12]} c3 {[%emt 0:01:19]} 48. Kf1 {[%emt 0:02:09]} Bxd4 {[%emt 0:00:27]} 49. Rxd4 {[%emt 0:00:23]} c2 {[%emt 0:00:03]} 50. Rd7+ {[%emt 0:00:07]} Kf8 {[%emt 0:00:07]} 51. Rc7 {[%emt 0:00:03]} 1-0

[Event "WYCC 2018 G14"]
[Site "Halkidiki"]
[Date "2018.10.27"]
[Round "8"]
[White "Mocanu, Paula"]
[Black "Randrianarimanana, Alicia"]
[Result "0-1"]
[ECO "B30"]
[WhiteElo "1680"]
[BlackElo "1947"]
[Annotator "NA"]
[PlyCount "119"]
[EventDate "2018.10.20"]
[EventType "swiss"]
[EventCountry "GRE"]
[SourceTitle "playchess.com"]
[Source "ChessBase"]
[SourceQuality "1"]
[TimeControl "40/5400+30:1800+30"]

1. e4 {[%emt 0:00:00]} c5 {[%emt 0:00:00]} 2. Nf3 {[%emt 0:00:00]} Nc6 {[%emt 0:00:00]} 3. Bb5 {[%emt 0:00:00]} Nf6 {[%emt 0:00:00]} 4. Bxc6 {[%emt 0:00:35]} bxc6 {[%emt 0:00:00]} 5. d3 {[%emt 0:00:20]} g6 {[%emt 0:04:48]} 6. Nc3 {[%emt 0:00:47]} Bg7 {[%emt 0:00:20]} 7. h3 {[%emt 0:00:19]} O-O {[%emt 0:00:16]} 8. Be3 {[%emt 0:00:13]} d6 {[%emt 0:00:08]} 9. Qd2 {[%emt 0:00:24]} Rb8 {[%emt 0:01:35]} 10. Rb1 {[%emt 0:02:42]} Re8 {[%emt 0:11:17]} 11. O-O {[%emt 0:01:23]} e5 {[%emt 0:01:19]} 12. Bh6 {[%emt 0:03:39]} Ba6 {[%emt 0:12:30]} 13. Bxg7 {[%emt 0:05:35]} Kxg7 {[%emt 0:00:01]} 14. b3 {[%emt 0:03:16]} Qa5 {[%emt 0:09:32]} 15. Na4 {[%emt 0:07:40]} Qc7 {[%emt 0:00:52]} 16. Rfe1 {[%emt 0:00:49]} Nh5 {[%emt 0:04:56]} 17. g3 {[%emt 0:03:40]} Bc8 {[%emt 0:00:09]} 18. Kg2 {[%emt 0:03:39]} h6 {[%emt 0:00:14]} 19. Rh1 {[%emt 0:08:53]} Be6 {[%emt 0:00:30]} 20. Rbe1 {[%emt 0:03:24]} Qd7 {[%emt 0:05:46]} 21. Qc3 {[%emt 0:03:17]} Kh7 {[%emt 0:04:16]} 22. Nb2 {[%emt 0:08:06]} f5 {[%emt 0:05:57]} 23. Nc4 {[%emt 0:05:22]} f4 {[%emt 0:00:46]} 24. Ncd2 {[%emt 0:13:07]} fxg3 {[%emt 0:00:43]} 25. fxg3 {[%emt 0:00:09]} Rf8 {[%emt 0:03:39]} 26. Ref1 {[%emt 0:06:34]} Rf7 {[%emt 0:00:47]} 27. Nxe5 {[%emt 0:05:54]} dxe5 {[%emt 0:00:40]} 28. Rxf7+ {[%emt 0:00:13]} Qxf7 {[%emt 0:02:12]} 29. Qxe5 {[%emt 0:00:19]} Re8 {[%emt 0:00:27]} 30. Qxc5 {[%emt 0:01:25]} Qc7 {[%emt 0:00:46]} 31. Qe3 {[%emt 0:01:58]} Rf8 {[%emt 0:00:48]} 32. Rf1 {[%emt 0:01:15]} Rxf1 {[%emt 0:05:51]} 33. Nxf1 {[%emt 0:00:07]} Qf7 {[%emt 0:00:25]} 34. Nd2 {[%emt 0:01:17]} g5 {[%emt 0:00:56]} 35. Nf3 {[%emt 0:03:25]} Qd7 {[%emt 0:01:56]} 36. Ne5 {[%emt 0:05:50]} Bxh3+ {[%emt 0:07:01]} 37. Kh2 {[%emt 0:00:29]} Qc7 {[%emt 0:00:43]} 38. Nxc6 {[%emt 0:02:17]} Qxc6 {[%emt 0:00:41]} 39. Kxh3 {[%emt 0:00:05]} Qc8+ {[%emt 0:00:10]} 40. g4 {[%emt 0:00:00]} Nf4+ {[%emt 0:00:00]} 41. Kg3 {[%emt 0:01:10]} Qc7 {[%emt 0:00:22]} 42. e5 {[%emt 0:00:54]} Qxc2 {[%emt 0:04:48]} 43. Qxa7+ {[%emt 0:00:42]} Kg8 {[%emt 0:00:10]} 44. Qa8+ {[%emt 0:04:41]} Kf7 {[%emt 0:00:07]} 45. Qb7+ {[%emt 0:00:55]} Ke6 {[%emt 0:00:41]} 46. Qb6+ {[%emt 0:02:21]} Kxe5 {[%emt 0:00:22]} 47. Qe3+ {[%emt 0:04:36]} Kd5 {[%emt 0:06:30]} 48. Qe4+ {[%emt 0:01:24]} Kd6 {[%emt 0:00:00]} 49. Qb4+ {[%emt 0:00:26]} Qc5 {[%emt 0:01:17]} 50. Qb8+ {[%emt 0:01:05]} Kd5 {[%emt 0:00:07]} 51. Qd8+ {[%emt 0:03:25]} Qd6 {[%emt 0:00:10]} 52. Qa8+ {[%emt 0:02:51]} Kd4 {[%emt 0:03:33]} 53. Qe4+ {[%emt 0:01:14]} Kc3 {[%emt 0:00:04]} 54. Qe1+ {[%emt 0:05:22]} Kc2 {[%emt 0:00:06]} 55. Qf2+ {[%emt 0:01:04]} Kxd3 {[%emt 0:04:28]} 56. Qf3+ {[%emt 0:01:11]} Kc2 {[%emt 0:00:06]} 57. Qf2+ {[%emt 0:02:02]} Qd2 {[%emt 0:01:34]} 58. Qxd2+ {[%emt 0:01:03]} Kxd2 {[%emt 0:00:01]} 59. b4 {[%emt 0:00:12]} Nd5 {[%emt 0:00:18]} 60. a3 {[%emt 0:02:31]} 0-1

[Event "WYCC 2018 G14"]
[Site "Halkidiki"]
[Date "2018.10.27"]
[Round "8"]
[White "Yellamraju, Ambica"]
[Black "Bardorz, Jana"]
[Result "1/2-1/2"]
[ECO "E68"]
[WhiteElo "1647"]
[BlackElo "1810"]
[Annotator "NA"]
[PlyCount "77"]
[EventDate "2018.10.20"]
[EventType "swiss"]
[EventCountry "GRE"]
[SourceTitle "playchess.com"]
[Source "ChessBase"]
[SourceQuality "1"]
[TimeControl "40/5400+30:1800+30"]

1. d4 {[%emt 0:00:00]} Nf6 {[%emt 0:00:00]} 2. c4 {[%emt 0:00:00]} g6 {[%emt 0:00:00]} 3. g3 {[%emt 0:00:00]} Bg7 {[%emt 0:00:00]} 4. Bg2 {[%emt 0:00:00]} O-O {[%emt 0:00:33]} 5. Nf3 {[%emt 0:00:37]} d6 {[%emt 0:01:10]} 6. Nc3 {[%emt 0:00:51]} Nbd7 {[%emt 0:02:20]} 7. O-O {[%emt 0:00:33]} e5 {[%emt 0:02:46]} 8. e4 {[%emt 0:01:01]} c6 {[%emt 0:02:08]} 9. Re1 {[%emt 0:02:56]} exd4 {[%emt 0:06:49]} 10. Nxd4 {[%emt 0:00:53]} Ng4 {[%emt 0:05:26]} 11. Nxc6 {[%emt 0:14:09]} bxc6 {[%emt 0:04:51]} 12. Qxg4 {[%emt 0:00:25]} Ne5 {[%emt 0:01:51]} 13. Qd1 {[%emt 0:09:56]} Nxc4 {[%emt 0:06:31]} 14. Qc2 {[%emt 0:02:48]} Rb8 {[%emt 0:11:47]} 15. Rb1 {[%emt 0:12:14]} Qa5 {[%emt 0:05:27]} 16. Bd2 {[%emt 0:05:59]} Be6 {[%emt 0:15:54]} 17. Red1 {[%emt 0:16:03]} Nxd2 {[%emt 0:04:00]} 18. Qxd2 {[%emt 0:03:28]} Rfd8 {[%emt 0:01:32]} 19. a3 {[%emt 0:04:41]} Bb3 {[%emt 0:02:05]} 20. Rdc1 {[%emt 0:01:41]} d5 {[%emt 0:01:59]} 21. exd5 {[%emt 0:00:50]} Bxd5 {[%emt 0:00:51]} 22. Bxd5 {[%emt 0:00:39]} Rxd5 {[%emt 0:00:24]} 23. Qf4 {[%emt 0:01:42]} Be5 {[%emt 0:02:20]} 24. Qf3 {[%emt 0:01:24]} Rc5 {[%emt 0:02:15]} 25. b4 {[%emt 0:01:56]} Qxa3 {[%emt 0:04:47]} 26. bxc5 {[%emt 0:00:22]} Rxb1 {[%emt 0:00:16]} 27. Rxb1 {[%emt 0:00:12]} Bxc3 {[%emt 0:00:33]} 28. Qxc6 {[%emt 0:01:05]} Bd4 {[%emt 0:01:36]} 29. Qe8+ {[%emt 0:10:55]} Kg7 {[%emt 0:00:06]} 30. Qe4 {[%emt 0:03:53]} Qxc5 {[%emt 0:01:06]} 31. Qf3 {[%emt 0:00:12]} a5 {[%emt 0:02:07]} 32. Rb7 {[%emt 0:00:16]} Qc4 {[%emt 0:00:40]} 33. Qb3 {[%emt 0:01:10]} Qc1+ {[%emt 0:02:10]} 34. Kg2 {[%emt 0:00:06]} Qc6+ {[%emt 0:00:58]} 35. Qf3 {[%emt 0:00:35]} Qe6 {[%emt 0:00:56]} 36. Qb3 {[%emt 0:01:01]} Qc6+ {[%emt 0:00:41]} 37. Qf3 {[%emt 0:00:02]} Qe6 {[%emt 0:00:08]} 38. Qb3 {[%emt 0:00:09]} Qc6+ {[%emt 0:00:59]} 39. Qf3 {[%emt 0:00:57]} 1/2-1/2

[Event "WYCC 2018 G14"]
[Site "Halkidiki"]
[Date "2018.10.27"]
[Round "8"]
[White "Arauco Celestino, Arianna Sofia"]
[Black "Wikar, Martyna"]
[Result "1-0"]
[ECO "A05"]
[WhiteElo "1610"]
[BlackElo "2024"]
[Annotator "NA"]
[PlyCount "87"]
[EventDate "2018.10.20"]
[EventType "swiss"]
[EventCountry "GRE"]
[SourceTitle "playchess.com"]
[Source "ChessBase"]
[SourceQuality "1"]
[TimeControl "40/5400+30:1800+30"]

1. Nf3 {[%emt 0:02:15]} Nf6 {[%emt 0:00:00]} 2. b3 {[%emt 0:00:25]} d6 {[%emt 0:00:54]} 3. Bb2 {[%emt 0:02:57]} Nbd7 {[%emt 0:01:09]} 4. g3 {[%emt 0:03:50]} c6 {[%emt 0:00:44]} 5. Bg2 {[%emt 0:00:09]} e5 {[%emt 0:00:48]} 6. d3 {[%emt 0:00:14]} Be7 {[%emt 0:01:27]} 7. Nbd2 {[%emt 0:00:25]} Qc7 {[%emt 0:02:49]} 8. c4 {[%emt 0:01:18]} O-O {[%emt 0:02:48]} 9. O-O {[%emt 0:01:04]} Re8 {[%emt 0:03:20]} 10. e4 {[%emt 0:07:17]} Bf8 {[%emt 0:02:50]} 11. d4 {[%emt 0:07:33]} a5 {[%emt 0:02:13]} 12. a3 {[%emt 0:05:48]} h6 {[%emt 0:03:31]} 13. b4 {[%emt 0:02:24]} b5 {[%emt 0:05:43]} 14. cxb5 {[%emt 0:13:58]} cxb5 {[%emt 0:00:09]} 15. d5 {[%emt 0:03:00]} Nb6 {[%emt 0:02:39]} 16. Qe2 {[%emt 0:04:25]} Bd7 {[%emt 0:00:48]} 17. Rfc1 {[%emt 0:01:01]} Qb7 {[%emt 0:00:27]} 18. bxa5 {[%emt 0:05:42]} Rxa5 {[%emt 0:02:19]} 19. Bc3 {[%emt 0:00:31]} Raa8 {[%emt 0:01:29]} 20. Nb3 {[%emt 0:00:46]} Nc4 {[%emt 0:02:39]} 21. Nfd2 {[%emt 0:01:42]} Bg4 {[%emt 0:13:42]} 22. f3 {[%emt 0:01:19]} Nxd2 {[%emt 0:05:06]} 23. Qxd2 {[%emt 0:06:48]} Bd7 {[%emt 0:00:30]} 24. Na5 {[%emt 0:00:31]} Qa6 {[%emt 0:01:23]} 25. Bb4 {[%emt 0:02:22]} Rec8 {[%emt 0:00:35]} 26. Rxc8 {[%emt 0:03:57]} Rxc8 {[%emt 0:02:56]} 27. Rc1 {[%emt 0:00:25]} Qb6+ {[%emt 0:04:58]} 28. Kf1 {[%emt 0:00:24]} g5 {[%emt 0:06:46]} 29. Rxc8 {[%emt 0:03:55]} Bxc8 {[%emt 0:00:09]} 30. Nc6 {[%emt 0:00:52]} Nd7 {[%emt 0:06:44]} 31. Bh3 {[%emt 0:01:14]} Qa6 {[%emt 0:02:10]} 32. Qc3 {[%emt 0:05:49]} Nb6 {[%emt 0:01:59]} 33. Bxc8 {[%emt 0:03:23]} Qxc8 {[%emt 0:00:10]} 34. Kg2 {[%emt 0:00:27]} f5 {[%emt 0:08:48]} 35. Qd3 {[%emt 0:02:28]} fxe4 {[%emt 0:01:51]} 36. fxe4 {[%emt 0:00:23]} Qa6 {[%emt 0:06:12]} 37. Qf1 {[%emt 0:01:54]} Qa4 {[%emt 0:00:37]} 38. Qf5 {[%emt 0:00:15]} Qc2+ {[%emt 0:01:09]} 39. Kh3 {[%emt 0:00:05]} Kg7 {[%emt 0:01:35]} 40. Nd8 {[%emt 0:00:00]} Qc8 {[%emt 0:00:00]} 41. Ne6+ {[%emt 0:00:59]} Kg8 {[%emt 0:01:44]} 42. Qg6+ {[%emt 0:00:30]} Kh8 {[%emt 0:00:14]} 43. Bxd6 {[%emt 0:01:46]} Nd7 {[%emt 0:02:04]} 44. Bxf8 {[%emt 0:00:08]} 1-0